[Event "1st FIDE Olympiad DIS 2023"]
[Site "Belgrade"]
[Date "2023.02.01"]
[Round "3.5"]
[White "Bjelanovic, Mile"]
[Black "Severino, Sander"]
[Result "0-1"]
[ECO "B15"]
[WhiteElo "2021"]
[BlackElo "2364"]
[Annotator "TA"]
[PlyCount "88"]
[EventDate "2023.01.30"]
[EventType "team-tourn"]
[EventCountry "SRB"]
[SourceTitle "playchess.com"]
[Source "ChessBase"]
[SourceQuality "1"]
[WhiteTeam "Serbia"]
[BlackTeam "Philippines"]
[WhiteTeamCountry "SRB"]
[BlackTeamCountry "PHI"]
[TimeControl "40/5400+30:1800+30"]

{[%evp 14,88,33,38,29,35,44,31,43,20,43,0,0,0,0,0,0,-17,-18,-28,-24,-47,-51,-62,-74,-76,-81,-85,-85,-245,-241,-235,-222,-418,-402,-541,-539,-533,-533,-509,-502,-491,-471,-1408,-460,-520,-530,-501,-532,-540,-540,-534,-534,-534,-526,-477,-515,-500,-443,-402,-146,-426,-401,-437,-392,-434,-426,-413,-408,-376,-305,-12837,-12838,-12838,-12839,-12839,-12838]} 1. e4 {[%emt 0:00:03]} c6 {[%emt 0:00:28]} 2. d4 {[%emt 0:01:14]} d5 {[%emt 0:00:28]} 3. Nd2 {[%emt 0:00:27]} dxe4 {[%emt 0:01:45]} 4. Nxe4 {[%emt 0:00:18]} Nf6 {[%emt 0:00:32]} 5. Nxf6+ {[%emt 0:00:28]} exf6 {[%emt 0:00:12]} 6. c3 {[%emt 0:00:16]} Bd6 {[%emt 0:00:18]} 7. Bd3 {[%emt 0:00:24]} O-O {[%emt 0:00:19]} 8. Qc2 {[%emt 0:00:24]} Re8+ {[%emt 0:01:27] B15: Caro-Kann: 3 Nc3: 3...g6 and 3...dxe4 4 Nxe4 Nf6 5 Nxf6+ exf6.} 9. Ne2 {[%emt 0:00:22]} h5 {[%emt 0:00:09]} 10. O-O {[%emt 0:01:48]} h4 {[%emt 0:05:04] White is slightly better.} 11. Bf4 {[%emt 0:04:29]} Na6 $1 {[%emt 0:19:29] [#] 11...Na6 is better than 11...h3.} (11... Rxe2 $2 12. Qxe2 Bxf4 13. Qe4 $18) 12. g3 $146 {[%emt 0:17:42]} ({Predecessor:} 12. Rae1 Nc7 13. Qd2 h3 14. Ng3 hxg2 15. Rxe8+ Nxe8 16. Re1 Be6 17. Bc2 Qd7 18. h4 {0-1 Kantans,T (2486)-Navara,D (2688) Olympiad-44 Chennai 2022 (2.1)}) 12... Nc7 {[%emt 0:00:39]} 13. Bxd6 {[%emt 0:01:54]} ({Of course not} 13. gxh4 Rxe2 14. Qxe2 Bxf4 $17) 13... Qxd6 {[%emt 0:00:04]} 14. Nf4 {[%emt 0:00:55]} Bg4 {[%emt 0:11:24]} 15. Bc4 {[%emt 0:07:40][%cal Oc4f7]} Ne6 {[%emt 0:02:49]} 16. Nxe6 {[%emt 0:10:34]} Bxe6 {[%emt 0:00:06]} 17. Bxe6 {[%emt 0:02:51]} Rxe6 {[%emt 0:00:30]} 18. Rfe1 {[%emt 0:06:29]} Rae8 {[%emt 0:00:11]} 19. Rxe6 {[%emt 0:06:09]} Qxe6 $17 {[%emt 0:00:28][%mdl 4096] Endgame KQR-KQR} 20. c4 {[%emt 0:17:40]} Qe2 {[%emt 0:01:36] Against Rd1} 21. Qc3 {[%emt 0:02:49]} (21. Qxe2 $17 Rxe2 22. b3) 21... h3 $19 {[%emt 0:04:01]} 22. Rf1 {[%emt 0:01:52] White is weak on the light squares} a5 $40 {[%emt 0:01:20][%mdl 128] Black is out for blood.} 23. a4 $2 {[%emt 0:00:30]} (23. b3) 23... f5 {[%emt 0:00:00]} 24. d5 {[%emt 0:01:51]} cxd5 {[%emt 0:00:05]} 25. cxd5 {[%emt 0:00:08]} Qe4 {[%emt 0:00:12][%csl Gh3,LRa4,LRd5][%cal Re4g2]} 26. f3 {[%emt 0:00:32]} Qxd5 {[%emt 0:00:37]} (26... Qxa4 $2 {perishes.} 27. d6 $19) 27. Kf2 {[%emt 0:01:23]} Qe6 {[%emt 0:02:07] Wards off Re1. ( -> ...Qb6+)} 28. Re1 {[%emt 0:02:11]} (28. Kg1 $142 Qe2 29. Rf2 Qd1+ 30. Rf1 Qxa4 31. Qd3) 28... Qb6+ {[%emt 0:00:20]} (28... Qxe1+ $142 29. Qxe1 Rxe1 30. Kxe1 Kf8) 29. Kf1 {[%emt 0:00:54]} Rxe1+ {[%emt 0:00:39][%mdl 64] Deflection} 30. Qxe1 {[%emt 0:00:39]} Qxb2 {[%emt 0:00:45][%csl Gh3][%cal Rb2g2] KQ-KQ} 31. Qe8+ {[%emt 0:00:24]} Kh7 {[%emt 0:00:03]} 32. Qxf7 {[%emt 0:00:45]} Qg2+ {[%emt 0:00:11]} ({And not} 32... Qxh2 33. Qh5+ Kg8 34. Qe8+ Kh7 35. Qh5+ Kg8 36. Qe8+ Kh7 37. Qh5+ $11) 33. Ke1 {[%emt 0:00:10]} Qxf3 {[%emt 0:00:07] ...Qh1+ is the strong threat.} 34. Kd2 {[%emt 0:02:06]} Kh6 {[%emt 0:00:51]} 35. Qe6+ {[%emt 0:00:29]} g6 $1 {[%emt 0:00:29]} 36. Qf6 {[%emt 0:01:27] Intending Qh8+ and mate.} Qd5+ $2 {[%emt 0:00:33]} (36... Qe4 $1 $19 {Hoping for ...Kh5.} 37. Qh8+ Kg5 38. Qxh3 Qb4+ 39. Kc2 Qxa4+ 40. Kb2 Qd4+ 41. Kc2 Qe4+ 42. Kb3 b5) 37. Ke2 $2 {[%emt 0:00:38][%mdl 8192] Loses the game.} (37. Ke3 $17 Qe4+ 38. Kf2) 37... Kh7 $1 {[%emt 0:03:07]} 38. Qe7+ {[%emt 0:01:18]} Kg8 {[%emt 0:00:15] And now ...Qe4+ would win.} 39. Qe8+ {[%emt 0:00:41]} Kg7 $1 {[%emt 0:00:09] Threatens to win with ...g5.} 40. Qe7+ {[%emt 0:00:13] [#]} Qf7 $1 {[%emt 0:00:10]} 41. Qe5+ {[%emt 0:30:39]} Qf6 {[%emt 0:30:33]} 42. Qxa5 {[%emt 0:01:32] [#]} (42. Qc7+ Kh6 43. Qxa5) 42... Qa6+ $1 {[%emt 0:00:45] Black is clearly winning.} 43. Qxa6 {[%emt 0:00:35]} bxa6 {[%emt 0:00:01]} 44. Kf3 {[%emt 0:03:02]} g5 {[%emt 0:00:07] Weighted Error Value: White=0.62/Black=0.19 (very precise)} 0-1

[Event "1st FIDE Olympiad DIS 2023"]
[Site "Belgrade"]
[Date "2023.02.01"]
[Round "3.6"]
[White "Lopez, Henry"]
[Black "Mitrovic, Stefan"]
[Result "1/2-1/2"]
[ECO "A55"]
[WhiteElo "2102"]
[BlackElo "1807"]
[Annotator "TA"]
[PlyCount "84"]
[EventDate "2023.01.30"]
[EventType "team-tourn"]
[EventCountry "SRB"]
[SourceTitle "playchess.com"]
[Source "ChessBase"]
[SourceQuality "1"]
[WhiteTeam "Philippines"]
[BlackTeam "Serbia"]
[WhiteTeamCountry "PHI"]
[BlackTeamCountry "SRB"]
[TimeControl "40/5400+30:1800+30"]

{[%evp 16,84,68,52,60,49,45,44,35,36,52,28,56,50,69,59,23,20,25,22,33,15,22,30,66,71,239,240,221,224,204,152,144,146,147,0,0,-29,-12,-31,27,11,40,52,339,2,0,0,2,3,91,0,0,0,0,0,0,0,4,0,8,8,8,8,14,8,12,4,8,8,8]} 1. d4 {[%emt 0:00:07]} Nf6 {[%emt 0:00:05]} 2. Nf3 {[%emt 0:00:27]} d6 {[%emt 0:00:08]} 3. c4 {[%emt 0:00:21]} Nbd7 {[%emt 0:00:06]} 4. Nc3 {[%emt 0:01:01]} e5 {[%emt 0:00:09]} 5. e4 {[%emt 0:00:48]} c6 {[%emt 0:02:32]} 6. Be2 {[%emt 0:00:18]} Be7 {[%emt 0:00:06]} 7. O-O {[%emt 0:00:12]} O-O {[%emt 0:00:06]} 8. Qc2 {[%emt 0:00:25]} Qc7 {[%emt 0:00:35]} 9. Bg5 {[%emt 0:02:08]} a6 {[%emt 0:01:16] A55: Old Indian Defence with Nf3 and e4.} 10. h3 {[%emt 0:04:36]} Re8 {[%emt 0:03:31]} 11. Rac1 {[%emt 0:01:44] [#]} b5 $146 {[%emt 0:03:25] White is slightly better.} ({Predecessor:} 11... exd4 12. Nxd4 Nc5 {½-½ Savova,S (2245)-Aladjova,K (2040) BUL-ch (Women) 1987 (6)}) 12. a3 {[%emt 0:00:18]} Bb7 {[%emt 0:20:11]} 13. b4 {[%emt 0:01:35]} Rac8 {[%emt 0:07:14]} 14. dxe5 {[%emt 0:05:17]} dxe5 {[%emt 0:01:42]} 15. c5 {[%emt 0:00:39]} Rcd8 {[%emt 0:05:14]} 16. Rfd1 {[%emt 0:02:56]} Nf8 {[%emt 0:04:51]} 17. Be3 {[%emt 0:01:12]} h6 {[%emt 0:03:05]} 18. Nh4 {[%emt 0:07:10]} Bc8 {[%emt 0:01:24]} 19. Nf5 {[%emt 0:00:31]} N6h7 {[%emt 0:08:45]} 20. a4 {[%emt 0:13:23][%cal Ra4b5] axb5 is the strong threat. White has more active pieces. The black rooks are badly placed.} Be6 $2 {[%emt 0:05:21]} (20... Nf6 $16 {keeps fighting.}) 21. axb5 $18 {[%emt 0:01:56]} axb5 {[%emt 0:00:12] [#]} 22. Bxb5 $1 {[%emt 0:14:32][%mdl 512]} Bxf5 {[%emt 0:01:21]} 23. exf5 {[%emt 0:00:47]} Rxd1+ {[%emt 0:06:43]} 24. Rxd1 {[%emt 0:00:21] Hoping for Bc4.} cxb5 {[%emt 0:03:38]} 25. Nd5 {[%emt 0:00:47]} ({White has to play} 25. Nxb5 $16 Qb7 26. Qc4) 25... Qc6 {[%emt 0:02:20]} 26. Qe4 {[%emt 0:01:34] aiming for Nxe7+.} Kh8 {[%emt 0:01:50]} 27. Qxe5 {[%emt 0:00:45]} (27. Nc3 $5 {[%cal Re4c6]} Qa6 28. Qxe5 $11) 27... Bg5 {[%emt 0:01:45]} (27... Bxc5 $2 28. Qc3 $18) ({Black should play} 27... Bd8 $1 $15 28. Qd6 Qxd6 29. cxd6 Nd7) 28. Qc7 $11 {[%emt 0:07:26]} Qxc7 {[%emt 0:01:45]} 29. Nxc7 {[%emt 0:00:06]} Re4 {[%emt 0:02:56][%mdl 8192]} (29... Rb8 $1 $14) 30. Rb1 $2 {[%emt 0:00:52]} ({Weaker is} 30. Nxb5 Rxb4 31. Nd6 Be7 $16) (30. c6 $18) 30... Bxe3 {[%emt 0:01:08]} 31. fxe3 {[%emt 0:00:07]} Nf6 {[%emt 0:04:53]} 32. Nxb5 {[%emt 0:04:31] c6 would be deadly.} Nd5 {[%emt 0:00:00] [#]} (32... N8d7 $1 $11 {remains equal.}) 33. Nd6 {[%emt 0:01:44]} ({White should try} 33. c6 $1 $16) 33... Rxb4 {[%emt 0:00:00] The position is equal.} 34. Rxb4 {[%emt 0:00:29]} Nxb4 {[%emt 0:00:00]} 35. Nxf7+ {[%emt 0:00:25]} Kg8 {[%emt 0:00:00]} 36. Ne5 {[%emt 0:00:26]} Nh7 {[%emt 0:00:05]} 37. Kf2 {[%emt 0:00:12]} Kf8 {[%emt 0:00:44]} 38. e4 {[%emt 0:01:01]} Ke7 {[%emt 0:00:41]} 39. Ke3 {[%emt 0:00:43]} Nf6 {[%emt 0:00:21]} 40. Ng6+ {[%emt 0:02:31][%mdl 1024] White has compensation.} Kd7 {[%emt 0:01:40]} 41. Nf4 {[%emt 0:30:20]} Kc6 {[%emt 0:32:12]} 42. Ne6 {[%emt 0:00:32]} Ne8 {[%emt 0:01:31] Weighted Error Value: White=0.34/Black=0.26 (precise)} 1/2-1/2

[Event "1st FIDE Olympiad DIS 2023"]
[Site "Belgrade"]
[Date "2023.02.01"]
[Round "3.7"]
[White "Kozhabekov, Adilkhan"]
[Black "Donmez, Unal"]
[Result "0-1"]
[ECO "A06"]
[WhiteElo "1939"]
[BlackElo "1816"]
[Annotator "TA"]
[PlyCount "68"]
[EventDate "2023.01.30"]
[EventType "team-tourn"]
[EventCountry "SRB"]
[SourceTitle "playchess.com"]
[Source "ChessBase"]
[SourceQuality "1"]
[WhiteTeam "Kazakhstan"]
[BlackTeam "Turkey"]
[WhiteTeamCountry "KAZ"]
[BlackTeamCountry "TUR"]
[TimeControl "40/5400+30:1800+30"]

{[%evp 9,68,9,30,30,34,29,47,43,64,61,60,65,66,24,41,40,60,45,68,50,51,29,57,55,74,-29,-29,-28,-20,-19,-14,-308,-295,-302,-186,-206,0,0,0,0,0,0,0,0,0,0,0,-8,-8,-56,-56,-617,-610,-592,-573,-29986,-29987,-29987,-29988,-29989,-29989]} 1. Nf3 {[%emt 0:00:28]} Nf6 {[%emt 0:00:18]} 2. b3 {[%emt 0:00:45]} d5 {[%emt 0:01:28]} 3. Bb2 {[%emt 0:00:07]} c5 {[%emt 0:00:56]} 4. e3 {[%emt 0:00:05]} Nc6 {[%emt 0:00:13]} 5. Bb5 {[%emt 0:03:53]} Bf5 {[%emt 0:06:44]} 6. Ne5 {[%emt 0:09:02] A06: Réti Opening: 1 Nf3 d5.} Qc7 {[%emt 0:02:08]} 7. d3 {[%emt 0:04:42]} e6 {[%emt 0:01:03]} 8. Nd2 {[%emt 0:00:24] White is slightly better.} Bd6 {[%emt 0:01:48]} 9. Bxc6+ {[%emt 0:04:46]} bxc6 {[%emt 0:00:17]} 10. f4 {[%emt 0:00:37]} O-O {[%emt 0:07:19]} 11. O-O {[%emt 0:02:23] [#]} (11. Qf3 $5 {[%cal Re3e4]}) 11... a5 $146 {[%emt 0:02:06]} ({Predecessor:} 11... Nd7 12. Nxd7 Qxd7 13. e4 Bg6 14. Qe2 Rfe8 15. Rae1 f6 16. Qf2 Kh8 17. Ba3 c4 18. Bxd6 Qxd6 19. bxc4 {1-0 Aravindh,C (2641)-Bethke,R (2332) Titled Tuesday intern op 27th Apr blitz 2021 (1)}) 12. a4 {[%emt 0:07:47]} Rab8 {[%emt 0:08:41]} 13. Qe1 {[%emt 0:06:21] Black must now prevent e4.} Nd7 {[%emt 0:14:56][%cal Rd7e5]} 14. Nxd7 {[%emt 0:18:46]} Qxd7 {[%emt 0:00:15]} 15. Nf3 {[%emt 0:00:10]} (15. Bc3 $5 {[%cal Rc3a5]}) 15... f6 {[%emt 0:00:55][%cal Oc5c4]} 16. e4 $1 {[%emt 0:04:52]} (16. Qxa5 c4 17. Nd4 (17. dxc4 Bb4 $15) 17... cxd3 18. Nxf5 exf5 $15) 16... Bg4 {[%emt 0:01:00]} 17. Qh4 {[%emt 0:07:01]} ({But not} 17. Qxa5 c4 18. Qc3 (18. dxc4 $2 {perishes.} Bb4 $19) 18... cxb3 19. cxb3 Bxf4 $15) (17. e5 $16 Bc7 18. exf6 gxf6 19. h3 Bxf3 20. Rxf3) 17... Bxf3 $11 {[%emt 0:08:24]} 18. Rxf3 {[%emt 0:00:18] [#]} c4 $1 {[%emt 0:00:22]} 19. Rh3 {[%emt 0:08:43]} (19. dxc4 {simplifies} dxe4 20. Rff1 Rbd8 21. Qf2) 19... h6 {[%emt 0:00:20]} ({Much less strong is} 19... cxb3 20. Qxh7+ Kf7 21. Rg3 $14) 20. Qg4 $2 {[%emt 0:09:39][%mdl 8192]} (20. dxc4 $11 {and White has nothing to worry.} dxc4 21. Kh1) 20... cxb3 $19 {[%emt 0:04:42]} 21. c4 {[%emt 0:03:39]} Qa7+ {[%emt 0:03:22]} 22. Kh1 {[%emt 0:00:16]} Qf7 {[%emt 0:07:56]} ({Black should play} 22... Kh8 $19 {aiming for ...Qf2.} 23. Rf1 Qe7) 23. Rxh6 $11 {[%emt 0:01:49]} Bxf4 {[%emt 0:06:19]} 24. Rxf6 {[%emt 0:03:30]} Qxf6 {[%emt 0:00:15]} 25. Bxf6 {[%emt 0:00:04]} Rxf6 {[%emt 0:00:12][%cal Bf8f6,Bf6f5,Bf5f1,Bf1b1][%mdl 32]} 26. g3 {[%emt 0:01:26]} b2 {[%emt 0:03:32] Really sharp!} 27. Rb1 $40 {[%emt 0:00:01][%mdl 128] Black needs to defend precisely.} Bc1 {[%emt 0:03:29]} 28. e5 {[%emt 0:01:02]} Rf5 {[%emt 0:00:34]} 29. cxd5 {[%emt 0:00:28]} (29. d4 $1 $11 {deserves consideration.}) 29... cxd5 $15 {[%emt 0:00:11]} 30. Qd4 {[%emt 0:01:09][%mdl 8192] [#]} (30. Qe2 $15) 30... Rf1+ $1 $19 {[%emt 0:03:18]} 31. Kg2 {[%emt 0:00:14] [#]} Be3 $1 {[%emt 0:00:26][%mdl 576] Discovered Attack} 32. Qg4 {[%emt 0:00:38]} (32. Rxb2 Rf2+) 32... Rxb1 {[%emt 0:00:34] Black mates.} 33. Qxe6+ {[%emt 0:00:01]} Kh8 {[%emt 0:01:17]} 34. Qh3+ {[%emt 0:01:20] [#]} Bh6 $1 {[%emt 0:00:18] Beautiful play by Donmez!   Weighted Error Value: White=0.61/Black=0.23 (precise)} 0-1

[Event "1st FIDE Olympiad DIS 2023"]
[Site "Belgrade"]
[Date "2023.02.01"]
[Round "3.7"]
[White "Bulatovic, Luka"]
[Black "Infiesto, James"]
[Result "0-1"]
[ECO "C55"]
[WhiteElo "1707"]
[BlackElo "1930"]
[Annotator "TA"]
[PlyCount "114"]
[EventDate "2023.01.30"]
[EventType "team-tourn"]
[EventCountry "SRB"]
[SourceTitle "playchess.com"]
[Source "ChessBase"]
[SourceQuality "1"]
[WhiteTeam "Serbia"]
[BlackTeam "Philippines"]
[WhiteTeamCountry "SRB"]
[BlackTeamCountry "PHI"]
[TimeControl "40/5400+30:1800+30"]

{[%evp 13,114,29,35,28,63,51,59,28,58,21,75,0,0,0,7,-19,-12,-29,-26,-29,-13,-20,-17,-139,-154,-154,-154,-147,-129,-210,-204,-210,-207,-201,-208,-208,-201,-211,-181,-237,-225,-235,-235,-244,-237,-300,-214,-279,-215,-225,-212,-215,-215,-222,-155,-173,-136,-125,-137,-133,-119,-138,-120,-141,-147,-246,-227,-237,-233,-251,-252,-303,-289,-307,-307,-327,-336,-316,-305,-349,-341,-465,-450,-453,-437,-508,-512,-516,-510,-535,-545,-569,-554,-582,-576,-1084,-1062,-980,-835,-1291,-1279,-2284,-2016]} 1. e4 {[%emt 0:00:12]} e5 {[%emt 0:00:07]} 2. Bc4 {[%emt 0:00:43]} Nf6 {[%emt 0:01:59]} 3. d3 {[%emt 0:00:39]} Nc6 {[%emt 0:01:05]} 4. Nf3 {[%emt 0:00:35]} Be7 {[%emt 0:00:16]} 5. c3 {[%emt 0:00:43]} O-O {[%emt 0:00:37]} 6. O-O {[%emt 0:00:48]} d6 {[%emt 0:01:34]} 7. Bb3 {[%emt 0:00:37]} Bg4 {[%emt 0:04:07]} 8. Re1 {[%emt 0:01:22] C55: Two Knights: 4 d3, 4 d4 exd4 5 e5 and Max Lange Attack.} Qd7 {[%emt 0:05:31]} 9. Nbd2 {[%emt 0:02:22][%cal Bb1d2,Bd2f1,Bf1g3][%mdl 32]} Be6 {[%emt 0:06:07]} 10. Nf1 {[%emt 0:01:54] White is slightly better.} h6 {[%emt 0:01:19]} 11. Ng3 {[%emt 0:01:08] [#]} Rfe8 $146 {[%emt 0:02:37]} (11... Bxb3 $11 12. Qxb3 a6) ({Predecessor:} 11... Bg4 12. h3 Bh5 13. Nxh5 Nxh5 14. Nh4 Nf4 15. Nf5 Kh7 16. Bxf4 exf4 17. Qg4 g6 18. Nxe7 Qxe7 19. Qxf4 {1-0 Winkler,S (1307)-Niesch,S (1043) GER-chT U14 Girls 2019 (5.7)}) 12. Qe2 {[%emt 0:03:27]} ({Better is} 12. Ba4 $16) 12... Bxb3 $11 {[%emt 0:03:09]} 13. axb3 {[%emt 0:00:00]} a5 {[%emt 0:00:07]} 14. h3 {[%emt 0:03:12]} Bf8 {[%emt 0:00:48]} 15. Nh4 {[%emt 0:02:01]} Qe6 {[%emt 0:02:45]} 16. Qc2 {[%emt 0:01:27]} Nd7 {[%emt 0:03:44][%cal Bf6d7,Bd7c5,Bc5d3][%mdl 32]} 17. Be3 {[%emt 0:03:34]} d5 {[%emt 0:03:03][%cal Bd6d5,Bd5d4][%mdl 32]} 18. Rad1 {[%emt 0:06:29]} (18. exd5 $11 {keeps the balance.} Qxd5 19. Nhf5) 18... d4 $17 {[%emt 0:01:19]} 19. Bd2 {[%emt 0:03:07]} Nc5 {[%emt 0:05:49]} 20. c4 {[%emt 0:02:40]} Nd8 {[%emt 0:08:21] Black is more active.} 21. b4 {[%emt 0:05:29]} (21. Ra1 $17) 21... axb4 $19 {[%emt 0:00:26]} 22. Bxb4 {[%emt 0:03:45] [#]} Nxd3 {[%emt 0:00:08][%mdl 576] Discovered Attack} 23. Qxd3 {[%emt 0:01:13] Black must now prevent Bxf8.} Bxb4 {[%emt 0:00:09]} 24. Rf1 {[%emt 0:00:34] White is weak on the dark squares} Qf6 {[%emt 0:04:31]} 25. Nf3 {[%emt 0:00:11]} Bf8 {[%emt 0:01:39]} 26. Nh2 {[%emt 0:01:38]} (26. Ne2 {was called for.}) 26... Ne6 {[%emt 0:01:08]} 27. Ng4 {[%emt 0:04:14]} Qg5 {[%emt 0:00:16]} 28. Nh2 {[%emt 0:08:02]} Nf4 {[%emt 0:01:16]} 29. Qf3 {[%emt 0:00:55]} b6 {[%emt 0:01:10]} 30. Kh1 {[%emt 0:01:26]} h5 {[%emt 0:03:19]} 31. Ne2 {[%emt 0:01:28]} Ne6 {[%emt 0:00:12]} 32. Nc1 {[%emt 0:01:04]} Ra4 {[%emt 0:02:20]} 33. Qb3 {[%emt 0:05:42]} Ra1 {[%emt 0:07:10]} 34. Nf3 {[%emt 0:02:24]} Qf6 {[%emt 0:00:25]} 35. Qb5 {[%emt 0:03:32]} Re7 {[%emt 0:02:47] Strongly threatening ...Nc5.} 36. Qxe5 {[%emt 0:05:28]} Qxe5 {[%emt 0:00:40]} 37. Nxe5 {[%emt 0:00:05]} Nc5 {[%emt 0:00:07][%csl LRe4,LRe5]} 38. Nc6 {[%emt 0:01:54]} Rxe4 {[%emt 0:00:06]} 39. Rxd4 {[%emt 0:03:08]} (39. f3 $17 {was the only chance.} Re8 40. Nxd4) 39... Rxd4 {[%emt 0:00:24]} 40. Nxd4 {[%emt 0:00:23]} Rb1 {[%emt 0:00:10]} 41. Kg1 {[%emt 0:04:37]} Rxb2 {[%emt 0:30:19]} 42. Nb5 {[%emt 0:00:49]} Ne6 {[%emt 0:00:18]} 43. Nd3 {[%emt 0:01:16]} Rc2 {[%emt 0:00:33]} 44. Rc1 Rd2 {[%emt 0:00:00]} 45. Ne5 {[%emt 0:30:37]} Bc5 {[%emt 0:00:27]} 46. Kh1 {[%emt 0:03:22]} Bxf2 {[%emt 0:02:25]} 47. Ra1 {[%emt 0:01:01]} Bg3 {[%emt 0:00:48] Black is clearly winning.} 48. Nf3 {[%emt 0:01:27]} Rc2 {[%emt 0:01:32]} 49. Ng1 {[%emt 0:02:14]} Rxc4 {[%emt 0:00:33]} 50. Ne2 {[%emt 0:00:35]} Be5 {[%emt 0:00:20]} 51. Rf1 {[%emt 0:01:06]} Rc2 {[%emt 0:01:25]} 52. Nc1 {[%emt 0:00:55]} g6 {[%emt 0:01:02]} 53. Nd3 {[%emt 0:00:52]} Bg3 {[%emt 0:00:16]} 54. Rf3 {[%emt 0:00:39]} h4 {[%emt 0:00:08]} 55. Rf1 {[%emt 0:00:29]} c5 {[%emt 0:00:35]} 56. Na7 {[%emt 0:00:05]} Rd2 {[%emt 0:00:20]} 57. Ne1 {[%emt 0:01:21]} Rd1 {Weighted Error Value: White=0.35/Black=0.12 (very precise)} 0-1

[Event "1st FIDE Olympiad DIS 2023"]
[Site "Belgrade"]
[Date "2023.02.01"]
[Round "3.8"]
[White "Bernardo, Darry"]
[Black "Petrovic, Vladan"]
[Result "1-0"]
[ECO "B13"]
[WhiteElo "2070"]
[BlackElo "1818"]
[Annotator "TA"]
[PlyCount "83"]
[EventDate "2023.01.30"]
[EventType "team-tourn"]
[EventCountry "SRB"]
[SourceTitle "playchess.com"]
[Source "ChessBase"]
[SourceQuality "1"]
[WhiteTeam "Philippines"]
[BlackTeam "Serbia"]
[WhiteTeamCountry "PHI"]
[BlackTeamCountry "SRB"]
[TimeControl "40/5400+30:1800+30"]

{[%evp 9,83,5,15,10,25,27,25,18,29,14,22,21,43,42,31,22,27,28,60,34,35,33,40,12,12,12,20,8,30,20,27,47,47,42,58,25,27,15,33,37,31,33,31,0,27,30,16,31,70,-4,13,6,81,72,176,188,179,179,169,169,342,335,1194,1192,991,1079,1023,1014,980,947,6495,6249,1924,937,2386,2064]} 1. e4 {[%emt 0:00:05]} c6 {[%emt 0:00:12]} 2. d4 {[%emt 0:01:43]} d5 {[%emt 0:00:11]} 3. exd5 {[%emt 0:01:21]} cxd5 {[%emt 0:00:12]} 4. Nf3 {[%emt 0:00:05]} Nf6 {[%emt 0:00:36]} 5. Ne5 {[%emt 0:00:53]} g6 {[%emt 0:04:36]} 6. Bb5+ {[%emt 0:01:05] B13: Caro-Kann: Exchange Variation and Panov-Botvinnik Attack.} Bd7 {[%emt 0:03:27]} 7. Nxd7 {[%emt 0:00:09]} Nbxd7 {[%emt 0:00:57]} 8. O-O {[%emt 0:00:03] White has an edge.} Bg7 {[%emt 0:01:10]} 9. c3 {[%emt 0:01:17]} O-O {[%emt 0:00:22]} 10. Re1 {[%emt 0:00:39]} e6 {[%emt 0:03:41]} 11. Nd2 {[%emt 0:00:30]} a6 {[%emt 0:02:53]} 12. Bd3 {[%emt 0:00:04]} b5 {[%emt 0:02:25]} 13. Nf3 {[%emt 0:01:04] [#]} Qc7 $146 {[%emt 0:04:41]} ({Predecessor:} 13... Qb6 14. a3 a5 15. Bd2 Rfc8 16. Qe2 Rab8 17. h4 Ne8 18. Bf4 Rb7 19. h5 Ndf6 20. hxg6 hxg6 {1-0 Shimanov,A (2626)-Sharapov,E (2368) Titled Tuesday intern op 2nd Oct blitz 2018 (5)}) 14. g3 {[%emt 0:01:37]} Nb6 {[%emt 0:06:05]} 15. Bf4 {[%emt 0:01:40]} Qb7 {[%emt 0:00:31]} 16. Qc1 {[%emt 0:04:13] Black is weak on the dark squares} Rac8 {[%emt 0:02:54]} 17. a3 {[%emt 0:02:52]} Nc4 {[%emt 0:06:43]} 18. Re2 {[%emt 0:02:51]} Qb6 {[%emt 0:09:12]} 19. Bh6 {[%emt 0:03:13]} Rfd8 {[%emt 0:01:36]} 20. Bg5 {[%emt 0:06:58]} Rd7 {[%emt 0:04:59]} 21. Qf4 {[%emt 0:00:54]} Ne8 {[%emt 0:01:28]} 22. Bh6 {[%emt 0:02:54]} Qd6 {[%emt 0:03:27]} 23. Qh4 {[%emt 0:03:26]} Bxh6 {[%emt 0:03:21]} 24. Qxh6 {[%emt 0:00:02]} Qf8 {[%emt 0:00:09]} 25. Qh4 {[%emt 0:00:50]} Qg7 {[%emt 0:00:55]} 26. a4 {[%emt 0:01:48]} (26. Ne5 {keeps more tension.} Rb7 27. Kg2 a5 28. Rae1) 26... Rb7 {[%emt 0:08:52]} 27. axb5 {[%emt 0:03:36]} axb5 {[%emt 0:02:49]} 28. Ra6 {[%emt 0:03:02]} Ned6 {[%emt 0:02:30]} 29. Bxc4 {[%emt 0:03:58]} (29. Qf4 $14) 29... Nxc4 {[%emt 0:00:22]} (29... Nf5 $5 {[%cal Rf5h4]} 30. Qf4 bxc4 $15) 30. Kg2 {[%emt 0:04:49]} b4 {[%emt 0:02:43]} (30... h6 $11) 31. b3 $16 {[%emt 0:01:52]} Rb6 {[%emt 0:00:54] [#]} (31... Nb6 $16) 32. Rxb6 $1 $18 {[%emt 0:03:56][%mdl 64] Remove Defender} Nxb6 {[%emt 0:00:08]} 33. cxb4 {[%emt 0:00:06]} Nd7 {[%emt 0:02:46]} 34. Qe7 {[%emt 0:01:31]} Nf6 {[%emt 0:02:00]} (34... Nf8 35. b5 f6 36. Rxe6 Qxe7 37. Rxe7 Rb8) 35. Rxe6 {[%emt 0:03:39]} fxe6 {[%emt 0:04:51] [#]} (35... Ne4 36. Qb7 Rd8) 36. Qxe6+ {[%emt 0:00:10] White is clearly winning.} Qf7 {[%emt 0:00:09]} 37. Qxc8+ {[%emt 0:00:06]} Kg7 {[%emt 0:00:09]} 38. Ne5 {[%emt 0:02:33]} Qe7 {[%emt 0:01:07]} 39. Qc5 {[%emt 0:00:26]} Qe6 {[%emt 0:00:28]} 40. Qc7+ {[%emt 0:00:54]} Kh6 {[%emt 0:00:10]} 41. Nf7+ {[%emt 0:32:54]} Kh5 {[%emt 0:30:47]} 42. Qe5+ {[%emt 0:00:14] Weighted Error Value: White=0.12 (very precise) /Black=0.23 (precise)} 1-0